[Event "Betsys MČR v online bleskovém šachu 2021"]
[Site "Chess.com"]
[Date "2021.04.17"]
[Round "13"]
[White "KatkaZ"]
[Black "Kokos3"]
[Result "0-1"]
[WhiteElo "1840"]
[BlackElo "1652"]
[TimeControl "180+1"]
[EndTime "11:11:58 PDT"]
[Termination "Uživatel Kokos3 zvítězil po vzdání soupeře"]

1. Nf3 {[%clk 0:03:00.9]} 1... Nf6 {[%clk 0:02:59]} 2. g3 {[%clk 0:03:00.7]}
2... g6 {[%clk 0:02:58.2]} 3. Bg2 {[%clk 0:03:01.1]} 3... Bg7 {[%clk 0:02:58.4]}
4. d3 {[%clk 0:03:01.4]} 4... d5 {[%clk 0:02:57.4]} 5. O-O {[%clk 0:03:01]} 5...
e5 {[%clk 0:02:56.9]} 6. Nbd2 {[%clk 0:03:01.2]} 6... Nbd7 {[%clk 0:02:52.7]} 7.
e4 {[%clk 0:03:00.7]} 7... d4 {[%clk 0:02:48.4]} 8. c4 {[%clk 0:03:00]} 8... c5
{[%clk 0:02:47.2]} 9. h3 {[%clk 0:02:56.7]} 9... O-O {[%clk 0:02:45.5]} 10. a3
{[%clk 0:02:55.5]} 10... Qe7 {[%clk 0:02:37.7]} 11. Kh2 {[%clk 0:02:51.2]} 11...
h6 {[%clk 0:02:35.4]} 12. Ng1 {[%clk 0:02:50.1]} 12... Nh7 {[%clk 0:02:29.7]}
13. f4 {[%clk 0:02:48.2]} 13... f5 {[%clk 0:02:23.9]} 14. exf5 {[%clk 0:02:34]}
14... Rxf5 {[%clk 0:02:16.8]} 15. Ne4 {[%clk 0:02:20.3]} 15... exf4 {[%clk
0:02:07.7]} 16. Bxf4 {[%clk 0:02:19.2]} 16... g5 {[%clk 0:02:06.7]} 17. Bd2
{[%clk 0:02:18.1]} 17... Rxf1 {[%clk 0:02:00]} 18. Qxf1 {[%clk 0:02:16.3]} 18...
Ne5 {[%clk 0:01:59.4]} 19. Re1 {[%clk 0:02:02.4]} 19... Nf6 {[%clk 0:01:49.4]}
20. Nxf6+ {[%clk 0:01:59.2]} 20... Qxf6 {[%clk 0:01:44.3]} 21. Qxf6 {[%clk
0:01:52]} 21... Bxf6 {[%clk 0:01:43.8]} 22. Be4 {[%clk 0:01:50.1]} 22... Rb8
{[%clk 0:01:42.2]} 23. b4 {[%clk 0:01:48.9]} 23... b6 {[%clk 0:01:41.2]} 24. Nf3
{[%clk 0:01:42.8]} 24... Nxf3+ {[%clk 0:01:32.8]} 25. Bxf3 {[%clk 0:01:40.9]}
25... Bd7 {[%clk 0:01:31.1]} 26. Bd5+ {[%clk 0:01:37.5]} 26... Kg7 {[%clk
0:01:29.3]} 27. b5 {[%clk 0:01:35.7]} 27... Re8 {[%clk 0:01:21.9]} 28. Rxe8
{[%clk 0:01:33.2]} 28... Bxe8 {[%clk 0:01:20.9]} 29. Be6 {[%clk 0:01:24.9]}
29... Bg6 {[%clk 0:01:18.8]} 30. a4 {[%clk 0:01:16.2]} 30... Bxd3 {[%clk
0:01:17.6]} 31. a5 {[%clk 0:01:15.8]} 31... Be5 {[%clk 0:01:12.4]} 32. axb6
{[%clk 0:01:11.8]} 32... axb6 {[%clk 0:01:11.9]} 33. Bd5 {[%clk 0:01:10.8]}
33... Kf6 {[%clk 0:01:10.4]} 34. Kg2 {[%clk 0:01:09.7]} 34... Bf5 {[%clk
0:00:59.1]} 35. h4 {[%clk 0:01:06.1]} 35... gxh4 {[%clk 0:00:54.9]} 36. gxh4
{[%clk 0:01:04.7]} 36... h5 {[%clk 0:00:51.7]} 37. Bg5+ {[%clk 0:01:00.5]} 37...
Kg6 {[%clk 0:00:45]} 38. Bd8 {[%clk 0:00:57.2]} 38... d3 {[%clk 0:00:44.6]} 39.
Bf3 {[%clk 0:00:42]} 39... Bg4 {[%clk 0:00:33.4]} 40. Be4+ {[%clk 0:00:41.2]}
40... Bf5 {[%clk 0:00:32.1]} 41. Bf3 {[%clk 0:00:39.3]} 41... d2 {[%clk
0:00:31.8]} 42. Bxb6 {[%clk 0:00:36.4]} 42... Bc2 {[%clk 0:00:26.8]} 43. Bxc5
{[%clk 0:00:34.3]} 43... d1=Q {[%clk 0:00:24.8]} 44. Bxd1 {[%clk 0:00:33.8]}
44... Bxd1 {[%clk 0:00:24.6]} 45. Be3 {[%clk 0:00:32.1]} 45... Be2 {[%clk
0:00:23.5]} 46. Kf2 {[%clk 0:00:30.9]} 46... Bxc4 {[%clk 0:00:23.3]} 47. b6
{[%clk 0:00:30.4]} 47... Bd5 {[%clk 0:00:22.3]} 48. Ke2 {[%clk 0:00:28]} 48...
Kf5 {[%clk 0:00:22.3]} 49. Bg5 {[%clk 0:00:21.6]} 49... Kg4 {[%clk 0:00:21.9]}
50. Bd8 {[%clk 0:00:21]} 50... Bg3 {[%clk 0:00:21.7]} 51. Kd3 {[%clk 0:00:18.7]}
51... Bxh4 {[%clk 0:00:21.4]} 52. Kd4 {[%clk 0:00:18.5]} 52... Bb7 {[%clk
0:00:21]} 53. Bc7 {[%clk 0:00:17.8]} 53... Bg5 {[%clk 0:00:18.5]} 54. Kc5 {[%clk
0:00:17.1]} 54... h4 {[%clk 0:00:17.6]} 55. Bd6 {[%clk 0:00:15.6]} 55... Bf4
{[%clk 0:00:15.9]} 56. Be7 {[%clk 0:00:13.7]} 56... h3 {[%clk 0:00:15.8]} 57.
Kd4 {[%clk 0:00:12.1]} 57... h2 {[%clk 0:00:15.5]} 58. Bf6 {[%clk 0:00:12.1]}
58... h1=Q {[%clk 0:00:14.3]} 0-1

[Event "Betsys MČR v online bleskovém šachu 2021"]
[Site "Chess.com"]
[Date "2021.04.17"]
[Round "13"]
[White "alenka777"]
[Black "Z_u_z_i"]
[Result "0-1"]
[WhiteElo "1277"]
[BlackElo "1526"]
[TimeControl "180+1"]
[EndTime "11:12:00 PDT"]
[Termination "Uživatel Z_u_z_i zvítězil matem"]

1. e4 {[%clk 0:03:00.9]} 1... c5 {[%clk 0:02:55.9]} 2. Nc3 {[%clk 0:02:59.5]}
2... e6 {[%clk 0:02:55.7]} 3. Nf3 {[%clk 0:02:59.4]} 3... Nc6 {[%clk 0:02:55.6]}
4. Bc4 {[%clk 0:02:58.8]} 4... a6 {[%clk 0:02:55.1]} 5. d3 {[%clk 0:02:59.2]}
5... b5 {[%clk 0:02:54.5]} 6. Bb3 {[%clk 0:02:58]} 6... d5 {[%clk 0:02:54]} 7.
a3 {[%clk 0:02:57.5]} 7... Nf6 {[%clk 0:02:52]} 8. exd5 {[%clk 0:02:55.3]} 8...
exd5 {[%clk 0:02:49.6]} 9. O-O {[%clk 0:02:54.2]} 9... Be7 {[%clk 0:02:48.4]}
10. Bg5 {[%clk 0:02:45.3]} 10... Be6 {[%clk 0:02:45.8]} 11. d4 {[%clk
0:02:40.1]} 11... c4 {[%clk 0:02:43.2]} 12. Ba2 {[%clk 0:02:39.1]} 12... O-O
{[%clk 0:02:42.2]} 13. b3 {[%clk 0:02:31.7]} 13... h6 {[%clk 0:02:40.2]} 14. Bf4
{[%clk 0:02:29.7]} 14... Bg4 {[%clk 0:02:29.7]} 15. h3 {[%clk 0:02:26.1]} 15...
Bh5 {[%clk 0:02:28.6]} 16. Qe2 {[%clk 0:02:13.8]} 16... Re8 {[%clk 0:02:26.2]}
17. bxc4 {[%clk 0:01:47.8]} 17... dxc4 {[%clk 0:02:18.6]} 18. d5 {[%clk
0:01:46.4]} 18... Nd4 {[%clk 0:02:12.6]} 19. Bxh6 {[%clk 0:01:28.2]} 19... gxh6
{[%clk 0:01:58.6]} 20. Qe3 {[%clk 0:01:27.6]} 20... Nf5 {[%clk 0:01:44.1]} 21.
Qf4 {[%clk 0:01:22.5]} 21... Bg6 {[%clk 0:01:32.6]} 22. Nh4 {[%clk 0:01:16.6]}
22... Nxh4 {[%clk 0:01:30]} 23. Qxh4 {[%clk 0:01:15.8]} 23... Nxd5 {[%clk
0:01:27.8]} 24. Qxh6 {[%clk 0:01:04.3]} 24... Nxc3 {[%clk 0:01:26.6]} 25. Rfe1
{[%clk 0:00:53.9]} 25... Nxa2 {[%clk 0:01:22.4]} 26. Rxa2 {[%clk 0:00:52.9]}
26... Qd4 {[%clk 0:01:10.7]} 27. c3 {[%clk 0:00:50.3]} 27... Qxc3 {[%clk
0:01:04.3]} 28. Rae2 {[%clk 0:00:50.1]} 28... Qf6 {[%clk 0:01:01]} 29. g4 {[%clk
0:00:38.6]} 29... Rad8 {[%clk 0:00:57.6]} 30. Qe3 {[%clk 0:00:29.5]} 30... Rd7
{[%clk 0:00:53]} 31. f4 {[%clk 0:00:28.4]} 31... Bd3 {[%clk 0:00:50.7]} 32. Rf2
{[%clk 0:00:26.2]} 32... Qd4 {[%clk 0:00:38.3]} 33. Qxd4 {[%clk 0:00:22.5]}
33... Rxd4 {[%clk 0:00:37.5]} 34. g5 {[%clk 0:00:22.2]} 34... Kf8 {[%clk
0:00:32.8]} 35. h4 {[%clk 0:00:21]} 35... Bd6 {[%clk 0:00:29.6]} 36. h5 {[%clk
0:00:20.3]} 36... Rxf4 {[%clk 0:00:29.1]} 37. h6 {[%clk 0:00:20.6]} 37... Rxe1+
{[%clk 0:00:28]} 38. Kg2 {[%clk 0:00:19.1]} 38... Rh4 {[%clk 0:00:24.8]} 39. g6
{[%clk 0:00:17.4]} 39... Rh2+ {[%clk 0:00:20.5]} 40. Kf3 {[%clk 0:00:16]} 40...
Rxf2+ {[%clk 0:00:19.8]} 41. Kxf2 {[%clk 0:00:15.7]} 41... Re2+ {[%clk
0:00:18.8]} 42. Kf3 {[%clk 0:00:15.1]} 42... fxg6 {[%clk 0:00:18.7]} 43. h7
{[%clk 0:00:14.5]} 43... Kg7 {[%clk 0:00:18.4]} 44. h8=Q+ {[%clk 0:00:14.7]}
44... Kxh8 {[%clk 0:00:18.3]} 45. Kg4 {[%clk 0:00:12.9]} 45... Kg7 {[%clk
0:00:17.3]} 46. Kg5 {[%clk 0:00:13.2]} 46... Bg3 {[%clk 0:00:15.8]} 47. Kg4
{[%clk 0:00:13.4]} 47... Bf2 {[%clk 0:00:15.6]} 48. Kf3 {[%clk 0:00:13.7]} 48...
Be1 {[%clk 0:00:14.8]} 49. Kf4 {[%clk 0:00:13.3]} 49... Bd2+ {[%clk 0:00:14.9]}
50. Kf3 {[%clk 0:00:13.7]} 50... Kf6 {[%clk 0:00:14.7]} 51. Kg4 {[%clk
0:00:13.2]} 51... g5 {[%clk 0:00:14.2]} 52. Kf3 {[%clk 0:00:13]} 52... Kf5
{[%clk 0:00:14.9]} 53. a4 {[%clk 0:00:11.9]} 53... Re3+ {[%clk 0:00:15]} 54. Kf2
{[%clk 0:00:10.6]} 54... Kf4 {[%clk 0:00:15.2]} 55. axb5 {[%clk 0:00:09.9]}
55... Re2+ {[%clk 0:00:15.1]} 56. Kg1 {[%clk 0:00:08.9]} 56... Kg3 {[%clk
0:00:13.8]} 57. Kf1 {[%clk 0:00:08]} 57... Re1# {[%clk 0:00:13.7]} 0-1

[Event "Betsys MČR v online bleskovém šachu 2021"]
[Site "Chess.com"]
[Date "2021.04.17"]
[Round "13"]
[White "Bancroft"]
[Black "kecalk"]
[Result "1-0"]
[WhiteElo "1941"]
[BlackElo "2099"]
[TimeControl "180+1"]
[EndTime "11:12:01 PDT"]
[Termination "Uživatel Bancroft zvítězil na čas"]

1. d4 {[%clk 0:03:00.9]} 1... d5 {[%clk 0:02:57.9]} 2. c4 {[%clk 0:03:00.8]}
2... e6 {[%clk 0:02:58.3]} 3. Nc3 {[%clk 0:03:00.5]} 3... Nf6 {[%clk 0:02:58.3]}
4. cxd5 {[%clk 0:03:00.4]} 4... exd5 {[%clk 0:02:59.2]} 5. Bg5 {[%clk
0:03:00.2]} 5... Be7 {[%clk 0:02:59.3]} 6. Qc2 {[%clk 0:02:59.8]} 6... c6 {[%clk
0:02:57.5]} 7. e3 {[%clk 0:02:59.4]} 7... Nbd7 {[%clk 0:02:57]} 8. Bd3 {[%clk
0:02:59.5]} 8... h6 {[%clk 0:02:56.9]} 9. Bh4 {[%clk 0:02:59.1]} 9... Nh5 {[%clk
0:02:57]} 10. Bxe7 {[%clk 0:02:51.3]} 10... Qxe7 {[%clk 0:02:57.9]} 11. Nge2
{[%clk 0:02:50.3]} 11... Nb6 {[%clk 0:02:56.1]} 12. O-O {[%clk 0:02:48.4]} 12...
O-O {[%clk 0:02:53.8]} 13. Rae1 {[%clk 0:02:45.2]} 13... Be6 {[%clk 0:02:44.2]}
14. f3 {[%clk 0:02:44.4]} 14... f5 {[%clk 0:02:43.5]} 15. a4 {[%clk 0:02:22.4]}
15... Rae8 {[%clk 0:02:37.7]} 16. a5 {[%clk 0:02:21.8]} 16... Nc8 {[%clk
0:02:37.9]} 17. a6 {[%clk 0:02:20.5]} 17... b6 {[%clk 0:02:30.2]} 18. Nd1 {[%clk
0:02:18.7]} 18... Nd6 {[%clk 0:02:29.9]} 19. Qxc6 {[%clk 0:02:12.2]} 19... Rc8
{[%clk 0:02:27.5]} 20. Qa4 {[%clk 0:02:09]} 20... Nc4 {[%clk 0:02:27.6]} 21.
Bxc4 {[%clk 0:02:02.4]} 21... Rxc4 {[%clk 0:02:13.8]} 22. Qb5 {[%clk 0:01:52.8]}
22... Rfc8 {[%clk 0:02:05.3]} 23. Nf4 {[%clk 0:01:48.3]} 23... Rb4 {[%clk
0:02:04.5]} 24. Qd3 {[%clk 0:01:45.3]} 24... Nxf4 {[%clk 0:01:55.8]} 25. exf4
{[%clk 0:01:46.2]} 25... Qd6 {[%clk 0:01:51.7]} 26. Re5 {[%clk 0:01:43.3]} 26...
Rcc4 {[%clk 0:01:45.2]} 27. Rfe1 {[%clk 0:01:40.3]} 27... Rxd4 {[%clk
0:01:40.5]} 28. Qc3 {[%clk 0:01:31.3]} 28... Rbc4 {[%clk 0:01:24]} 29. Qe3
{[%clk 0:01:30.5]} 29... Bd7 {[%clk 0:01:18.9]} 30. Nc3 {[%clk 0:01:22.9]} 30...
Rb4 {[%clk 0:00:52]} 31. h3 {[%clk 0:01:19.9]} 31... Kh7 {[%clk 0:00:50.7]} 32.
Kh2 {[%clk 0:01:17.2]} 32... Bc8 {[%clk 0:00:38.7]} 33. Re7 {[%clk 0:01:02]}
33... Bxa6 {[%clk 0:00:35.7]} 34. Rxa7 {[%clk 0:00:59.8]} 34... Rxf4 {[%clk
0:00:31.4]} 35. g3 {[%clk 0:00:48.6]} 35... Rxb2+ {[%clk 0:00:26.9]} 36. Ne2
{[%clk 0:00:46.5]} 36... Ra4 {[%clk 0:00:20.3]} 37. Qc3 {[%clk 0:00:29.6]} 37...
Rxe2+ {[%clk 0:00:14.5]} 38. Rxe2 {[%clk 0:00:29.1]} 38... d4 {[%clk 0:00:14.2]}
39. Qc2 {[%clk 0:00:24.4]} 39... Bxe2 {[%clk 0:00:09.3]} 40. Qxa4 {[%clk
0:00:18.4]} 40... d3 {[%clk 0:00:08.8]} 41. Rd7 {[%clk 0:00:07.2]} 41... Qe6
{[%clk 0:00:06.2]} 42. Qd4 {[%clk 0:00:06.4]} 42... Qg6 {[%clk 0:00:04]} 43. Rd6
{[%clk 0:00:02.6]} 43... Qf7 {[%clk 0:00:02.9]} 44. h4 {[%clk 0:00:02.6]} 44...
b5 {[%clk 0:00:02.4]} 45. g4 {[%clk 0:00:01.5]} 45... fxg4 {[%clk 0:00:02.2]}
46. fxg4 {[%clk 0:00:02]} 46... b4 {[%clk 0:00:01.2]} 47. g5 {[%clk 0:00:02.4]}
1-0

[Event "Betsys MČR v online bleskovém šachu 2021"]
[Site "Chess.com"]
[Date "2021.04.17"]
[Round "13"]
[White "ZdenekRomanek"]
[Black "youhy"]
[Result "0-1"]
[WhiteElo "1563"]
[BlackElo "1751"]
[TimeControl "180+1"]
[EndTime "11:12:03 PDT"]
[Termination "Uživatel youhy zvítězil po vzdání soupeře"]

1. d4 {[%clk 0:03:00.9]} 1... Nf6 {[%clk 0:02:59.1]} 2. c4 {[%clk 0:03:00.2]}
2... e6 {[%clk 0:02:59.1]} 3. Nc3 {[%clk 0:02:59.4]} 3... Bb4 {[%clk 0:02:58.9]}
4. Nf3 {[%clk 0:02:58.2]} 4... O-O {[%clk 0:02:57.2]} 5. e3 {[%clk 0:02:57.6]}
5... d5 {[%clk 0:02:56.5]} 6. Bd3 {[%clk 0:02:56.6]} 6... dxc4 {[%clk
0:02:55.8]} 7. Bxc4 {[%clk 0:02:55.8]} 7... c5 {[%clk 0:02:55.9]} 8. a3 {[%clk
0:02:52.9]} 8... Ba5 {[%clk 0:02:54.4]} 9. dxc5 {[%clk 0:02:47.5]} 9... Qxd1+
{[%clk 0:02:49]} 10. Kxd1 {[%clk 0:02:45.5]} 10... Bxc3 {[%clk 0:02:48.4]} 11.
bxc3 {[%clk 0:02:44.9]} 11... Nbd7 {[%clk 0:02:47.2]} 12. c6 {[%clk 0:02:39.1]}
12... bxc6 {[%clk 0:02:44.6]} 13. Nd4 {[%clk 0:02:34.2]} 13... c5 {[%clk
0:02:37.5]} 14. Nb5 {[%clk 0:02:32.8]} 14... Nb6 {[%clk 0:02:24.5]} 15. Ba2
{[%clk 0:02:25]} 15... Rd8+ {[%clk 0:02:16.9]} 16. Kc2 {[%clk 0:02:19.9]} 16...
a6 {[%clk 0:02:05]} 17. Nc7 {[%clk 0:02:10.8]} 17... Ra7 {[%clk 0:02:03.1]} 18.
Rb1 {[%clk 0:02:06]} 18... Nbd7 {[%clk 0:01:29.6]} 19. Nxe6 {[%clk 0:01:56.4]}
19... fxe6 {[%clk 0:01:27.7]} 20. Bxe6+ {[%clk 0:01:54.9]} 20... Kf8 {[%clk
0:01:24.2]} 21. Rd1 {[%clk 0:01:47.3]} 21... Ke7 {[%clk 0:01:22.1]} 22. Bh3
{[%clk 0:01:41]} 22... Rb7 {[%clk 0:00:59.1]} 23. f3 {[%clk 0:01:30.5]} 23...
Rxb1 {[%clk 0:00:56]} 24. Kxb1 {[%clk 0:01:29.5]} 24... Nb6 {[%clk 0:00:54.4]}
25. Rxd8 {[%clk 0:01:27.5]} 25... Kxd8 {[%clk 0:00:53.8]} 26. Bxc8 {[%clk
0:01:23]} 26... Kxc8 {[%clk 0:00:53.3]} 27. Kc2 {[%clk 0:01:18.7]} 27... Kd7
{[%clk 0:00:51.3]} 28. e4 {[%clk 0:01:16.1]} 28... Ke6 {[%clk 0:00:49]} 29. Kb3
{[%clk 0:01:09.9]} 29... Nfd7 {[%clk 0:00:27.6]} 30. a4 {[%clk 0:01:08.3]} 30...
a5 {[%clk 0:00:23]} 31. Be3 {[%clk 0:01:01.9]} 31... c4+ {[%clk 0:00:19.6]} 32.
Ka3 {[%clk 0:00:55.9]} 32... Kd6 {[%clk 0:00:19.2]} 33. Bd4 {[%clk 0:00:48.9]}
33... g6 {[%clk 0:00:13.5]} 34. h4 {[%clk 0:00:46.4]} 34... Nc5 {[%clk
0:00:11.9]} 35. Bxc5+ {[%clk 0:00:37.4]} 35... Kxc5 {[%clk 0:00:11.5]} 36. g4
{[%clk 0:00:36.2]} 36... Kd6 {[%clk 0:00:11.3]} 37. f4 {[%clk 0:00:32.5]} 37...
Nd7 {[%clk 0:00:09.8]} 38. h5 {[%clk 0:00:28.2]} 38... gxh5 {[%clk 0:00:05.1]}
39. gxh5 {[%clk 0:00:27.1]} 39... Ke6 {[%clk 0:00:05.5]} 40. Kb2 {[%clk
0:00:24.1]} 40... Kf6 {[%clk 0:00:05]} 41. Kc2 {[%clk 0:00:22.9]} 41... Kg7
{[%clk 0:00:03.7]} 42. Kd2 {[%clk 0:00:20.8]} 42... Kh6 {[%clk 0:00:04.1]} 43.
Ke3 {[%clk 0:00:19.6]} 43... Kxh5 {[%clk 0:00:04.6]} 44. Kd4 {[%clk 0:00:18.5]}
44... Kg4 {[%clk 0:00:04.2]} 45. f5 {[%clk 0:00:17.8]} 45... h5 {[%clk
0:00:03.6]} 46. Kxc4 {[%clk 0:00:14.5]} 46... Kf4 {[%clk 0:00:03.1]} 47. Kd5
{[%clk 0:00:13.6]} 47... h4 {[%clk 0:00:02.8]} 48. Ke6 {[%clk 0:00:12.3]} 48...
Nc5+ {[%clk 0:00:02]} 49. Ke7 {[%clk 0:00:09.2]} 49... Nxe4 {[%clk 0:00:02.9]}
50. f6 {[%clk 0:00:07.5]} 50... Nxf6 {[%clk 0:00:02.5]} 51. Kxf6 {[%clk
0:00:07.1]} 51... h3 {[%clk 0:00:03.4]} 0-1

[Event "Betsys MČR v online bleskovém šachu 2021"]
[Site "Chess.com"]
[Date "2021.04.17"]
[Round "13"]
[White "pkozubik"]
[Black "FrantisekP"]
[Result "1-0"]
[WhiteElo "1211"]
[BlackElo "1624"]
[TimeControl "180+1"]
[EndTime "11:12:05 PDT"]
[Termination "Uživatel pkozubik zvítězil na čas"]

1. e4 {[%clk 0:02:16]} 1... c5 {[%clk 0:02:59.4]} 2. Nf3 {[%clk 0:02:15.5]} 2...
Nc6 {[%clk 0:02:59.7]} 3. d4 {[%clk 0:02:16.4]} 3... cxd4 {[%clk 0:03:00.5]} 4.
Nxd4 {[%clk 0:02:15.4]} 4... g6 {[%clk 0:03:00.6]} 5. Nxc6 {[%clk 0:02:13]} 5...
bxc6 {[%clk 0:03:00.1]} 6. Be3 {[%clk 0:02:07.4]} 6... Bg7 {[%clk 0:02:58.7]} 7.
c3 {[%clk 0:02:06]} 7... d6 {[%clk 0:02:56.9]} 8. Bd3 {[%clk 0:02:06.9]} 8...
Nf6 {[%clk 0:02:56.1]} 9. Nd2 {[%clk 0:02:07.8]} 9... O-O {[%clk 0:02:55.1]} 10.
O-O {[%clk 0:02:08.7]} 10... Qc7 {[%clk 0:02:51.6]} 11. f4 {[%clk 0:02:08.4]}
11... c5 {[%clk 0:02:41]} 12. f5 {[%clk 0:02:01.9]} 12... Bd7 {[%clk 0:02:27.1]}
13. Nf3 {[%clk 0:02:00.6]} 13... Rab8 {[%clk 0:02:26.2]} 14. b3 {[%clk
0:01:59.5]} 14... Bc6 {[%clk 0:02:24.1]} 15. Ng5 {[%clk 0:01:56.5]} 15... h6
{[%clk 0:02:14.5]} 16. Nxf7 {[%clk 0:01:41.5]} 16... Rxf7 {[%clk 0:02:06.7]} 17.
fxg6 {[%clk 0:01:41.3]} 17... Rff8 {[%clk 0:02:04.9]} 18. Qf3 {[%clk 0:01:37.5]}
18... Qb7 {[%clk 0:01:55.4]} 19. Qh3 {[%clk 0:01:25.7]} 19... Bxe4 {[%clk
0:01:23.2]} 20. Bxe4 {[%clk 0:00:50.5]} 20... Qxe4 {[%clk 0:01:03.8]} 21. Bxh6
{[%clk 0:00:51.4]} 21... Qxg6 {[%clk 0:01:01.1]} 22. Bxg7 {[%clk 0:00:45.5]}
22... Kxg7 {[%clk 0:01:00.8]} 23. Rf3 {[%clk 0:00:43.7]} 23... Rh8 {[%clk
0:00:51]} 24. Qe6 {[%clk 0:00:38.6]} 24... Qf7 {[%clk 0:00:40.1]} 25. Rg3+
{[%clk 0:00:34.5]} 25... Kf8 {[%clk 0:00:35.2]} 26. Qe2 {[%clk 0:00:27.9]} 26...
Qh5 {[%clk 0:00:21.1]} 27. Qe6 {[%clk 0:00:22.9]} 27... Qf7 {[%clk 0:00:20.9]}
28. Qe2 {[%clk 0:00:21.4]} 28... Rb7 {[%clk 0:00:15.9]} 29. Rf1 {[%clk
0:00:20.4]} 29... Rc7 {[%clk 0:00:14.1]} 30. Qe3 {[%clk 0:00:17.8]} 30... Ke8
{[%clk 0:00:13]} 31. c4 {[%clk 0:00:15.7]} 31... Kd8 {[%clk 0:00:12]} 32. Rff3
{[%clk 0:00:13.3]} 32... Rf8 {[%clk 0:00:11.8]} 33. Rf4 {[%clk 0:00:12]} 33...
Qe6 {[%clk 0:00:11.5]} 34. Qf3 {[%clk 0:00:10.8]} 34... Qe1+ {[%clk 0:00:10.5]}
35. Qf1 {[%clk 0:00:10.1]} 35... Qxf1+ {[%clk 0:00:11]} 36. Rxf1 {[%clk
0:00:11]} 36... Ne4 {[%clk 0:00:11.3]} 37. Re3 {[%clk 0:00:10.6]} 37... Rxf1+
{[%clk 0:00:10.4]} 38. Kxf1 {[%clk 0:00:10.9]} 38... Ng5 {[%clk 0:00:09.8]} 39.
h4 {[%clk 0:00:10.6]} 39... Nf7 {[%clk 0:00:09]} 40. g4 {[%clk 0:00:10.7]} 40...
e5 {[%clk 0:00:09.3]} 41. g5 {[%clk 0:00:10.8]} 41... Ke7 {[%clk 0:00:09]} 42.
Rf3 {[%clk 0:00:10.5]} 42... Ke8 {[%clk 0:00:08.4]} 43. g6 {[%clk 0:00:11]}
43... Nh6 {[%clk 0:00:08.3]} 44. h5 {[%clk 0:00:10.4]} 44... Rg7 {[%clk
0:00:07.7]} 45. Kg2 {[%clk 0:00:09.4]} 45... Ke7 {[%clk 0:00:08]} 46. Kg3 {[%clk
0:00:09.6]} 46... Ke6 {[%clk 0:00:06.6]} 47. Kh4 {[%clk 0:00:10.2]} 47... Nf5+
{[%clk 0:00:06.1]} 48. Kg5 {[%clk 0:00:09.9]} 48... Ne7 {[%clk 0:00:04.4]} 49.
h6 {[%clk 0:00:09.5]} 49... Rxg6+ {[%clk 0:00:03.6]} 50. Kh5 {[%clk 0:00:10.1]}
50... Rg8 {[%clk 0:00:03.8]} 51. h7 {[%clk 0:00:09.5]} 51... Rh8 {[%clk
0:00:03.9]} 52. Kh6 {[%clk 0:00:09.7]} 52... Nf5+ {[%clk 0:00:02.5]} 53. Kg6
{[%clk 0:00:08.6]} 53... Rf8 {[%clk 0:00:01.8]} 54. Rxf5 {[%clk 0:00:06.1]} 1-0

[Event "Betsys MČR v online bleskovém šachu 2021"]
[Site "Chess.com"]
[Date "2021.04.17"]
[Round "13"]
[White "Lunaticx"]
[Black "JakubPulpan"]
[Result "0-1"]
[WhiteElo "2963"]
[BlackElo "2733"]
[TimeControl "180+1"]
[EndTime "11:12:06 PDT"]
[Termination "Uživatel JakubPulpan zvítězil po vzdání soupeře"]

1. d4 {[%clk 0:03:00.9]} 1... Nf6 {[%clk 0:02:44.6]} 2. c4 {[%clk 0:02:53.4]}
2... e6 {[%clk 0:02:44.6]} 3. Nf3 {[%clk 0:02:53.5]} 3... d5 {[%clk 0:02:44.9]}
4. Nc3 {[%clk 0:02:50.4]} 4... c5 {[%clk 0:02:42.5]} 5. cxd5 {[%clk 0:02:50.6]}
5... Nxd5 {[%clk 0:02:42.8]} 6. e4 {[%clk 0:02:50.9]} 6... Nxc3 {[%clk
0:02:43.2]} 7. bxc3 {[%clk 0:02:51.8]} 7... cxd4 {[%clk 0:02:44.1]} 8. cxd4
{[%clk 0:02:52.4]} 8... Bb4+ {[%clk 0:02:44.7]} 9. Bd2 {[%clk 0:02:53]} 9...
Bxd2+ {[%clk 0:02:45.6]} 10. Qxd2 {[%clk 0:02:53.9]} 10... O-O {[%clk
0:02:46.2]} 11. Bc4 {[%clk 0:02:54.3]} 11... Nd7 {[%clk 0:02:46.6]} 12. O-O
{[%clk 0:02:53.6]} 12... b6 {[%clk 0:02:46.9]} 13. Rad1 {[%clk 0:02:52.8]} 13...
Bb7 {[%clk 0:02:47]} 14. Rfe1 {[%clk 0:02:53.3]} 14... Rc8 {[%clk 0:02:47.2]}
15. Bb3 {[%clk 0:02:53.5]} 15... Re8 {[%clk 0:02:47.5]} 16. h3 {[%clk
0:02:46.3]} 16... Nf6 {[%clk 0:02:46.4]} 17. Qf4 {[%clk 0:02:42.8]} 17... Nh5
{[%clk 0:02:46.9]} 18. Qh2 {[%clk 0:02:42.3]} 18... b5 {[%clk 0:02:16.4]} 19.
Qe5 {[%clk 0:02:36.9]} 19... Nf6 {[%clk 0:02:14.5]} 20. Qf4 {[%clk 0:02:25.2]}
20... Nh5 {[%clk 0:02:12.5]} 21. Qg4 {[%clk 0:02:16.7]} 21... Nf6 {[%clk
0:02:12.8]} 22. Qh4 {[%clk 0:02:17]} 22... Nd7 {[%clk 0:02:13.3]} 23. Qf4 {[%clk
0:02:12.4]} 23... a5 {[%clk 0:02:09.7]} 24. a4 {[%clk 0:02:07.3]} 24... Rc3
{[%clk 0:01:57.1]} 25. Re3 {[%clk 0:02:06.4]} 25... Rxe3 {[%clk 0:01:56.3]} 26.
Qxe3 {[%clk 0:02:06.5]} 26... Nf6 {[%clk 0:01:36.1]} 27. Nd2 {[%clk 0:01:51.4]}
27... Bc6 {[%clk 0:01:21.5]} 28. axb5 {[%clk 0:01:42.9]} 28... Bxb5 {[%clk
0:01:22.4]} 29. Ra1 {[%clk 0:01:38.9]} 29... Qb6 {[%clk 0:01:12.4]} 30. Nf3
{[%clk 0:01:34.9]} 30... a4 {[%clk 0:01:03.9]} 31. Ba2 {[%clk 0:01:29.6]} 31...
Bc6 {[%clk 0:00:59.8]} 32. Rb1 {[%clk 0:01:29]} 32... Qa7 {[%clk 0:00:54.8]} 33.
Nd2 {[%clk 0:01:22.6]} 33... Rd8 {[%clk 0:00:48.8]} 34. Rc1 {[%clk 0:01:20.7]}
34... Bb7 {[%clk 0:00:39.6]} 35. Rc4 {[%clk 0:01:16.9]} 35... Qa5 {[%clk
0:00:31]} 36. f3 {[%clk 0:01:11.7]} 36... Ba6 {[%clk 0:00:31.2]} 37. Rc5 {[%clk
0:01:00.4]} 37... Qb4 {[%clk 0:00:30.8]} 38. Bc4 {[%clk 0:00:56.8]} 38... Bxc4
{[%clk 0:00:26.4]} 39. Rxc4 {[%clk 0:00:57.7]} 39... Qb5 {[%clk 0:00:24.2]} 40.
Qc3 {[%clk 0:00:55.4]} 40... h6 {[%clk 0:00:23.9]} 41. Rb4 {[%clk 0:00:50.3]}
41... Qa5 {[%clk 0:00:20.3]} 42. Qa3 {[%clk 0:00:48.4]} 42... Ra8 {[%clk
0:00:17.7]} 43. Nc4 {[%clk 0:00:48.5]} 43... Qa7 {[%clk 0:00:09.5]} 44. Nb6
{[%clk 0:00:48.1]} 44... Rb8 {[%clk 0:00:09.8]} 45. Nxa4 {[%clk 0:00:48.2]}
45... Rd8 {[%clk 0:00:08.8]} 46. Qb2 {[%clk 0:00:43.8]} 46... e5 {[%clk
0:00:07.7]} 47. Nc5 {[%clk 0:00:42.4]} 47... Rxd4 {[%clk 0:00:06.1]} 48. Qc3
{[%clk 0:00:35.2]} 48... Rxb4 {[%clk 0:00:05.9]} 49. Qxb4 {[%clk 0:00:35.5]}
49... Nd7 {[%clk 0:00:06.4]} 50. Kh2 {[%clk 0:00:32.4]} 50... Qxc5 {[%clk
0:00:06.6]} 51. Qa4 {[%clk 0:00:32.3]} 51... Nf8 {[%clk 0:00:06.3]} 52. Qe8
{[%clk 0:00:32]} 52... Qd6 {[%clk 0:00:06.4]} 53. Qc8 {[%clk 0:00:31.7]} 53...
Qe6 {[%clk 0:00:06.7]} 54. Qc7 {[%clk 0:00:31.8]} 54... g5 {[%clk 0:00:07.2]}
55. Qc1 {[%clk 0:00:30.2]} 55... Kg7 {[%clk 0:00:07.5]} 56. h4 {[%clk
0:00:30.7]} 56... Qf6 {[%clk 0:00:07.9]} 57. h5 {[%clk 0:00:30.3]} 57... Qf4+
{[%clk 0:00:08]} 0-1